{"text_format":"2","workbook":"xlsx","n_sheets":2,"sheets":["Concentrado enero 2026","Hoja1"],"not_rendered":{"charts":0,"images":0,"macros":0,"external_links":0,"defined_names":0,"comments":0,"pivot_tables":0},"unopened":[],"bounds":{"document_bytes":16777216,"sheet_cells":100000,"run_cost":"one","rows_first":2000,"rows_last":500,"rows_between":2000,"halvings":0,"cell_chars":16384,"cell_head_chars":4096},"cells_cut":0,"cells_raw":0,"read":"whole","date_system":"1900"}

{"sheet":"Concentrado enero 2026","index":0,"n_rows":131,"n_cols":21,"rows_kept":131,"cut":false,"hidden":false,"merged":[[0,11,0,20],[1,11,3,11],[1,12,3,12],[1,13,1,15],[1,16,1,20],[2,13,3,13],[2,14,3,14],[2,15,3,15],[2,16,2,17],[2,18,2,19],[2,20,3,20],[0,0,3,0],[0,1,0,10],[2,3,3,3],[2,4,3,4],[2,5,3,5],[2,6,2,7],[2,10,3,10],[1,1,3,1],[1,2,3,2],[1,3,1,5],[1,6,1,10],[2,8,2,9]]}
["Municipio","Enero",{"$nulls":9},"Febrero"]
[null,"Casos","Escuelas que reportan","Nivel",null,null,"Involucrados",{"$nulls":4},"Casos","Escuelas que reportan","Nivel",null,null,"Involucrados"]
[null,null,null,"Preescolar","Primaria","Secundaria","Agresor",null,"Agredido",null,"Total",null,null,"Preescolar","Primaria","Secundaria","Agresor",null,"Agredido",null,"Total"]
[{"$nulls":6},"Mujeres","Hombres","Mujeres","Hombres",{"$nulls":6},"Mujeres","Hombres","Mujeres","Hombres"]
["ACATIC"]
["ACATLÁN DE JUÁREZ"]
["AHUALULCO DE MERCADO"]
["AMACUECA"]
["AMATITÁN"]
["AMECA"]
["SAN JUANITO DE ESCOBEDO"]
["ARANDAS"]
["EL ARENAL"]
["ATEMAJAC DE BRIZUELA"]
["ATENGO"]
["ATENGUILLO"]
["ATOTONILCO EL ALTO"]
["ATOYAC"]
["AUTLÁN DE NAVARRO"]
["AYOTLÁN"]
["AYUTLA"]
["LA BARCA"]
["BOLAÑOS"]
["CABO CORRIENTES"]
["CASIMIRO CASTILLO"]
["CIHUATLÁN"]
["ZAPOTLÁN EL GRANDE"]
["COCULA"]
["COLOTLÁN"]
["CONCEPCIÓN DE BUENOS AIRES"]
["CUATITLÁN DE GARCÍA BARRAGÁN"]
["CUAUTLA"]
["CUQUÍO"]
["CHAPALA"]
["CHIMALTITÁN"]
["CHIQUILISTLÁN"]
["DEGOLLADO"]
["EJUTLA"]
["ENCARNACIÓN DE DÍAZ"]
["ETZATLÁN"]
["EL GRULLO"]
["GUACHINANGO"]
["GUADALAJARA",2,null,1,null,1,null,2,2,null,null,4,null,1,2,1,null,4,2,2,{"$f":"SUM(Q43:T43)","v":8}]
["HOSTOTIPAQUILLO"]
["HUEJÚCAR"]
["HUEJUQUILLA EL ALTO"]
["LA HUERTA"]
["IXTLAHUACÁN DE LOS MEMBRILLOS"]
["IXTLAHUACÁN DEL RÍO"]
["JALOSTOTITLÁN"]
["JAMAY"]
["JESÚS MARÍA"]
["JILOTLÁN DE LOS DOLORES"]
["JOCOTEPEC"]
["JUANACATLÁN"]
["JUCHITLÁN"]
["LAGOS DE MORENO"]
["EL LIMÓN"]
["MAGDALENA",1,null,null,null,1,1,null,1]
["SANTA MARÍA DEL ORO"]
["LA MANZANILLA DE LA PAZ"]
["MASCOTA"]
["MAZAMITLA"]
["MEXTICACÁN"]
["MEZQUITIC"]
["MIXTLÁN"]
["OCOTLÁN"]
["OJUELOS DE JALISCO"]
["PIHUAMO"]
["PONCITLÁN"]
["PUERTO VALLARTA",1,null,null,1,null,null,1,null,1]
["VILLA PURIFICACIÓN"]
["QUITUPAN"]
["EL SALTO",{"$nulls":10},1,null,null,1,null,null,1,null,1,{"$f":"SUM(Q74:T74)","v":2}]
["SAN CRISTÓBAL DE LA BARRANCA"]
["SAN DIEGO DE ALEJANDRÍA"]
["SAN JUAN DE LOS LAGOS"]
["SAN JULIÁN"]
["SAN MARCOS"]
["SAN MARTÍN DE BOLAÑOS"]
["SAN MARTÍN DE HIDALGO"]
["SAN MIGUEL EL ALTO"]
["GÓMEZ FARÍAS"]
["SAN SEBASTIÁN DEL OESTE"]
["SANTA MARÍA DE LOS ÁNGELES"]
["SAYULA"]
["TALA"]
["TALPA DE ALLENDE"]
["TAMAZULA DE GORDIANO"]
["TAPALPA"]
["TECALITLÁN"]
["TECOLOTLÁN"]
["TECHALUTA DE MONTENEGRO"]
["TENAMAXTLÁN"]
["TEOCALTICHE"]
["TEOCUITATLÁN DE CORONA"]
["TEPATITLÁN DE MORELOS"]
["TEQUILA"]
["TEUCHITLÁN"]
["TIZAPÁN EL ALTO"]
["TLAJOMULCO DE ZÚÑIGA",2,null,null,2,null,null,2,1,1]
["TLAQUEPAQUE"]
["TOLIMÁN"]
["TOMATLÁN"]
["TONALÁ",{"$nulls":10},1,null,null,1,null,null,1,1,null,{"$f":"SUM(Q105:T105)","v":2}]
["TONAYA"]
["TONILA"]
["TOTATICHE"]
["TOTOTLÁN"]
["TUXCACUESCO"]
["TUXCUECA"]
["TUXPAN"]
["UNIÓN DE SAN ANTONIO"]
["UNIÓN DE TULA"]
["VALLE DE GUADALUPE"]
["VALLE DE JUÁREZ"]
["SAN GABRIEL"]
["VILLA CORONA"]
["VILLA GUERRERO"]
["VILLA HIDALGO"]
["CAÑADAS DE OBREGÓN"]
["YAHUALICA DE GONZÁLEZ GALLO"]
["ZACOALCO DE TORRES"]
["ZAPOPAN",1,null,1,null,null,null,1,1,null,null,2,null,null,null,2,null,2,1,1,{"$f":"SUM(Q124:T124)","v":4}]
["ZAPOTILTIC"]
["ZAPOTITLÁN DE VADILLO"]
["ZAPOTLÁN DEL REY"]
["ZAPOTLANEJO"]
["SAN IGNACIO CERRO GORDO"]
["22 Mpios"]
["TOTAL DE CASOS",{"$f":"SUM(B5:B130)","v":7},0,2,3,2,1,6,5,2,{"$f":"SUM(G131:J131)","v":14},{"$f":"SUM(L43:L130)","v":8},null,{"$f":"SUM(N5:N130)","v":1},{"$f":"SUM(O5:O130)","v":4},{"$f":"SUM(P5:P130)","v":3},0,{"$f":"SUM(R5:R130)","v":8},{"$f":"SUM(S5:S130)","v":4},{"$f":"SUM(T5:T130)","v":4},{"$f":"SUM(Q131:T131)","v":16}]

{"sheet":"Hoja1","index":1,"n_rows":33,"n_cols":11,"rows_kept":33,"cut":false,"hidden":true,"merged":[[19,10,21,10],[20,6,20,7],[20,8,20,9],[1,10,3,10],[1,6,1,9],[2,6,2,7],[2,8,2,9],[19,6,19,9],[20,4,21,4],[20,5,21,5],[2,4,3,4],[2,5,3,5],[1,0,3,0],[1,1,3,1],[1,2,3,2],[1,3,1,5],[19,0,21,0],[19,1,21,1],[19,2,21,2],[19,3,19,5],[20,3,21,3],[2,3,3,3]]}
["JUNIO"]
["Municipio","Casos","Escuelas que reportan","Nivel",null,null,"Involucrados",null,null,null,"Total"]
[null,null,null,"Preescolar","Primaria","Secundaria","Agresor",null,"Agredido"]
[{"$nulls":6},"Mujeres","Hombres","Mujeres","Hombres"]
["CASIMIRO CASTILLO",1,1,null,null,1,3,null,1,null,4]
["COCULA",1,1,null,null,1,null,1,1,null,2]
["COLOTLÁN",1,1,null,1,null,null,1,null,1,2]
["GUADALAJARA",4,4,null,1,3,6,4,3,2,15]
["LAGOS DE MORENO",1,1,null,1,null,null,1,null,1,2]
["TEPATITLÁN DE MORELOS",2,2,null,2,null,null,2,1,1,4]
["TEQUILA",1,1,null,null,1,null,3,1,null,4]
["TLAJOMULCO DE ZÚÑIGA",2,2,null,1,1,null,1,3,null,4]
["TLAQUEPAQUE",2,2,null,1,1,null,2,null,2,4]
["TONALÁ",3,3,1,1,1,null,3,1,2,6]
["ZAPOTLANEJO",1,1,null,null,1,null,1,1,null,2]
["TOTAL DE CASOS",19,19,1,8,10,9,19,12,9,49]
[]
[]
["JULIO"]
["Municipio","Casos","Escuelas que reportan","Nivel",null,null,"Involucrados",null,null,null,"Total"]
[null,null,null,"Preescolar","Primaria","Secundaria","Agresor",null,"Agredido"]
[{"$nulls":6},"Mujeres","Hombres","Mujeres","Hombres"]
["CIHUATLÁN",2,2,null,1,1,null,2,7,6,15]
["ZAPOTLÁN EL GRANDE",1,1,1,null,null,null,1,null,1,2]
["GUADALAJARA",2,2,null,null,2,null,1,null,1,2]
["LAGOS DE MORENO",3,3,null,3,null,1,3,1,2,7]
["PUERTO VALLARTA",2,2,null,null,2,1,1,null,4,6]
["SAN JUAN DE LOS LAGOS",1,1,null,1,null,null,2,1,null,3]
["TEPATITLÁN DE MORELOS",3,3,null,3,null,null,3,null,3,6]
["TLAJOMULCO DE ZÚÑIGA",1,1,null,1,null,null,1,1,null,2]
["TONALÁ",3,3,null,2,1,1,5,7,null,13]
["ZAPOPAN",4,4,null,3,1,null,4,1,3,8]
["TOTAL DE CASOS",22,22,1,14,7,3,23,18,20,64]